bitfinex-derivatives/quotes_ETHF0:USTF0_20241230
["timestamp","ask_amount","ask_price","bid_price","bid_amount"]
[1735580477499,3.2078,3377.6,3377.0,0.5508]
[1735580477697,0.6029,3378.0,3377.2,3.2078]
[1735580477903,0.29656,3377.6,3377.4,0.29657]
[1735580478102,0.6029,3378.0,3377.0,0.5508]
[1735580478493,0.29658,3377.4,3377.0,0.5508]
[1735580478702,0.2966,3377.1,3377.0,0.5508]
[1735580479201,3.2078,3377.7,3377.1,0.2966]
[1735580479499,3.2078,3377.7,3377.3,0.29658]
[1735580479500,0.29657,3377.5,3377.3,0.29658]
[1735580479904,0.29657,3377.5,3377.2,0.29658]
[1735580480103,3.2078,3377.7,3377.0,0.5508]
[1735580480104,0.2966,3377.1,3377.0,0.5508]
[1735580480311,3.2078,3377.7,3377.0,0.5508]
[1735580480497,0.29659,3377.2,3377.0,0.5508]
[1735580481005,3.2078,3377.7,3377.0,0.5508]
[1735580481195,1.1723,3378.0,3377.0,0.5508]
[1735580481399,6.1723,3378.0,3377.0,0.5508]
[1735580481605,1.91362,3378.0,3377.2,0.29658]
[1735580481801,0.29658,3377.3,3377.1,0.29659]
[1735580481999,0.29667,3376.2,3375.7,3.2078]
[1735580482197,7.41402143,3377.2,3376.1,3.2078]
[1735580482404,0.6029,3378.0,3377.1,3.2078]
[1735580482602,2.2832125,3378.6,3377.1,3.2078]
[1735580482603,0.29649,3378.4,3377.9,0.29652]
[1735580482805,2.5797125,3378.2,3377.9,3.2078]
[1735580483023,2.2832125,3378.2,3377.9,3.2078]
[1735580483203,0.29652,3378.0,3377.9,3.2078]
[1735580483407,0.29652,3378.0,3377.2,0.562]
[1735580483408,0.29655,3377.6,3377.2,0.562]
[1735580483708,2.2832125,3378.2,3377.2,0.562]
[1735580483903,3.2078,3377.9,3377.3,40.8]
[1735580484226,3.24804982,3377.5,3377.3,40.8]
[1735580484507,0.29658,3377.3,3376.8,0.29662]
[1735580484812,3.2078,3377.4,3377.0,0.2966]
[1735580484813,3.50437,3377.4,3377.0,0.2966]
[1735580485013,3.50437,3377.4,3376.6,3.8082]
[1735580485014,3.2078,3377.4,3377.1,0.29659]
[1735580485212,3.2078,3377.4,3377.2,0.29658]
[1735580485508,3.2078,3377.4,3376.6,3.8082]
[1735580485713,3.2078,3377.4,3376.7,0.29663]
[1735580485913,3.2078,3377.4,3377.2,0.29658]
[1735580486116,3.2078,3377.4,3376.6,3.8082]
[1735580486417,3.2078,3377.4,3376.6,0.89703]
[1735580486418,3.50441,3377.0,3376.6,0.89703]
[1735580487115,3.2078,3377.0,3376.6,0.6004]
[1735580487411,0.74135,3377.8,3376.9,3.2078]
[1735580487412,0.23963344,3377.8,3376.9,3.2078]
[1735580487614,2.2832125,3377.9,3377.3,3.2078]
[1735580487804,2.2832125,3377.9,3376.6,5.6004]
[1735580487805,3.2078,3378.4,3377.7,3.2078]
[1735580488120,0.29647,3378.3,3377.9,0.2965]
[1735580488417,3.2078,3378.4,3377.7,3.2078]
[1735580488619,3.2078,3378.4,3378.3,0.29646]
[1735580489209,2.32053225,3378.5,3378.2,3.2078]
[1735580489415,2.32053225,3378.5,3378.4,0.29645]
[1735580490317,3.48079837,3378.7,3378.6,0.29643]
[1735580490318,1.01278837,3378.7,3378.6,0.29643]
[1735580490518,8.00834482,3379.7,3378.6,0.29643]
[1735580490519,2.319574,3379.4,3379.3,0.29637]
[1735580490721,2.319574,3379.4,3379.3,44.30417]
[1735580491819,5.80133062,3380.0,3379.3,44.30417]
[1735580491820,4.6410645,3380.6,3380.1,0.2963]
[1735580492116,4.9373245,3380.6,3380.1,0.2963]
[1735580492519,4.6410645,3380.6,3380.1,0.2963]
[1735580493017,14.27629556,3381.9,3380.1,0.2963]
[1735580493018,7.8488645,3381.3,3380.1,8.2078]
[1735580493223,7.8488645,3381.3,3381.0,0.29622]
[1735580493515,4.6410645,3381.3,3380.9,3.2078]
[1735580493913,4.6410645,3381.3,3381.2,0.29621]
[1735580494116,0.6044,3381.8,3380.9,3.2078]
[1735580494322,5.6044,3381.8,3380.9,3.2078]
[1735580494525,0.29621,3381.2,3380.9,3.2078]
[1735580495013,0.6044,3381.8,3380.9,3.2078]
[1735580495217,0.29622,3381.0,3380.9,3.2078]
[1735580495414,0.29626,3380.6,3380.5,3.2078]
[1735580495621,0.29629,3380.2,3380.1,3.2078]
[1735580496221,0.5981,3380.5,3380.2,0.29629]
[1735580496517,0.5981,3380.5,3380.1,3.2078]
[1735580496722,0.29626,3380.6,3380.2,0.29629]
[1735580496916,0.29626,3380.6,3380.1,3.5041]
[1735580497120,0.29625,3380.7,3380.2,0.29629]
[1735580497316,0.29627,3380.5,3380.1,3.5041]
[1735580497616,0.5981,3381.0,3380.2,0.29629]
[1735580497821,0.5981,3381.0,3380.1,3.2078]
[1735580497822,0.29622,3381.1,3380.1,3.2078]
[1735580498019,0.29622,3381.1,3380.6,0.29625]
[1735580498223,3.504,3381.3,3380.9,0.29623]
[1735580498524,3.504,3381.3,3380.5,3.2078]
[1735580498525,3.2078,3381.3,3380.5,3.2078]
[1735580498721,0.29621,3381.2,3380.5,3.2078]
[1735580499019,0.29619,3381.4,3381.0,0.29622]
[1735580499224,0.74041,3381.7,3380.9,3.2078]
[1735580499417,0.29622,3381.1,3380.9,3.2078]
[1735580499621,3.2078,3381.9,3380.9,3.2078]
[1735580499921,0.5887,3382.1,3381.4,3.2078]
[1735580500221,4.6410645,3381.9,3381.4,3.2078]
[1735580500426,4.6410645,3381.9,3381.6,0.29617]
[1735580500720,4.6410645,3381.9,3381.4,3.2078]
[1735580500920,4.6410645,3381.9,3381.0,40.8]
[1735580500921,4.6410645,3381.9,3381.8,3.50395]
[1735580501224,0.9027645,3381.9,3381.8,3.50395]
[1735580501423,0.9027645,3383.0,3382.3,0.29611]
[1735580501617,0.9027645,3383.0,3382.5,3.50389]
[1735580501926,0.9027645,3383.0,3382.5,4.8378]
[1735580502324,0.9027645,3383.0,3382.7,0.29607]
[1735580502519,0.9027645,3383.0,3382.5,4.8378]
[1735580502726,0.9027645,3383.0,3382.9,3.50386]
[1735580502915,0.9027645,3383.0,3382.9,3.2078]
[1735580503121,17.49220316,3384.1,3382.9,3.2078]
[1735580503122,0.5615,3383.9,3382.9,3.2078]
[1735580503821,0.29603,3383.3,3382.9,3.2078]
[1735580504121,0.5615,3383.9,3382.9,3.2078]
[1735580504323,0.29603,3383.3,3382.9,3.50386]
[1735580504514,0.5615,3383.9,3382.9,3.2078]
[1735580504515,0.29605,3383.0,3382.9,3.2078]
[1735580504719,0.29605,3383.0,3382.3,3.2078]
[1735580504920,0.2961,3382.5,3382.3,3.2078]
[1735580505120,3.94792,3383.1,3382.3,3.2078]
[1735580505121,0.2961,3382.4,3382.3,3.2078]
[1735580505526,0.29614,3382.0,3381.9,3.2078]
[1735580505723,3.2078,3382.7,3381.9,3.2078]
[1735580505923,0.29613,3382.1,3381.6,0.29616]
[1735580506119,0.5594,3382.6,3381.3,3.2078]
[1735580506327,0.29614,3382.0,3381.6,0.29617]
[1735580506521,0.29613,3382.1,3381.3,3.2078]
[1735580506829,0.29614,3382.0,3381.6,0.29617]
[1735580507123,0.29614,3382.0,3381.3,3.2078]
[1735580507124,0.29615,3381.9,3381.3,3.2078]
[1735580507328,3.2078,3382.2,3381.6,0.29617]
[1735580507718,0.74026,3382.5,3381.3,3.2078]
[1735580507926,0.74033,3382.1,3381.3,3.2078]
[1735580508126,0.29614,3382.0,3381.3,3.2078]
[1735580508331,5.0,3382.1,3381.3,3.2078]
[1735580508528,3.2078,3382.2,3381.3,3.2078]
[1735580508930,0.29615,3381.9,3381.3,3.2078]
[1735580509132,0.29613,3382.1,3381.5,0.29617]
[1735580509342,3.2078,3382.2,3381.3,3.2078]
[1735580509634,0.29613,3382.1,3381.8,0.29615]
[1735580509829,0.9057,3382.4,3382.1,0.29613]
[1735580510031,3.2078,3382.8,3382.5,0.29609]
[1735580510224,0.29609,3382.5,3382.2,0.29611]
[1735580510425,0.29608,3382.7,3382.3,0.2961]
[1735580510829,0.85549,3382.6,3382.3,0.2961]
[1735580511026,0.5594,3382.6,3381.9,3.2078]
[1735580511223,3.2078,3382.8,3382.7,0.29608]
[1735580511433,3.2078,3383.4,3382.3,7.50388]
[1735580511733,3.2078,3383.4,3383.2,0.29603]
[1735580512122,3.2078,3383.4,3382.7,3.2078]
[1735580512329,3.2078,3383.4,3383.3,0.29602]
[1735580512624,3.2078,3383.4,3383.2,0.29603]
[1735580512823,3.2078,3383.4,3383.1,0.29603]
[1735580512824,3.50382,3383.4,3383.1,0.29603]
[1735580513430,3.50382,3383.4,3383.1,0.29604]
[1735580513630,0.29603,3383.3,3383.0,0.29605]
[1735580513830,3.2078,3383.4,3382.7,3.2078]
[1735580514035,3.2078,3383.4,3382.0,3.2078]
[1735580514036,3.2078,3383.0,3382.0,3.2078]
[1735580514332,3.2078,3382.6,3382.0,3.2078]
[1735580514535,0.29609,3382.6,3382.3,0.29611]
[1735580514735,0.29608,3382.6,3382.3,0.2961]
[1735580515036,3.2078,3382.7,3382.0,3.2078]
[1735580515231,1.32278,3383.3,3382.0,3.2078]
[1735580515232,0.29604,3383.1,3382.8,0.29606]
[1735580515427,3.7905,3383.3,3382.0,3.2078]
[1735580515633,0.2961,3382.4,3382.1,0.29612]
[1735580515832,0.2961,3382.5,3382.2,0.29612]
[1735580516034,3.2078,3382.9,3382.4,0.2961]
[1735580516239,3.2078,3382.9,3382.0,3.2078]
[1735580516635,3.2078,3382.9,3382.5,0.29609]
[1735580516830,3.2078,3382.9,3382.0,3.2078]
[1735580517136,0.5827,3383.3,3382.7,0.29607]
[1735580517137,0.29606,3383.0,3382.7,0.29607]
[1735580517338,0.5827,3383.3,3382.1,0.29613]
[1735580517535,0.29606,3383.0,3382.7,0.29607]
[1735580517735,0.29605,3383.0,3382.7,0.29607]
[1735580518041,3.2078,3383.1,3382.4,3.2078]
[1735580518341,3.2078,3383.1,3383.0,0.29605]
[1735580520842,0.5773,3383.6,3383.5,0.29601]
[1735580520843,3.2078,3383.6,3383.5,0.29601]
[1735580521037,3.2078,3384.0,3383.9,0.29597]
[1735580521235,3.2078,3384.0,3383.2,3.2078]
[1735580521236,0.5666,3384.5,3383.7,3.2078]
[1735580521439,0.5666,3384.5,3384.3,0.29593]
[1735580521639,0.29593,3384.4,3384.3,0.29593]
[1735580521840,0.86252,3384.5,3384.3,0.29593]
[1735580522033,3.2078,3385.0,3383.8,2.34495]
[1735580522247,0.73971,3384.9,3384.1,3.2078]
[1735580522447,0.29591,3384.6,3384.3,0.29593]
[1735580522943,0.29594,3384.3,3384.0,0.29596]
[1735580523140,3.2078,3384.6,3383.8,1.605]
[1735580523336,3.2078,3384.6,3383.7,44.0078]
[1735580523542,3.2078,3384.6,3383.2,1.32087]
[1735580523543,0.29597,3383.9,3383.6,0.29599]
[1735580523739,3.2078,3384.1,3383.4,1.90101]
[1735580523740,0.296,3383.7,3383.4,1.90101]
[1735580523941,0.5924,3384.4,3383.4,1.605]
[1735580524352,3.2078,3384.1,3383.4,0.29601]
[1735580524544,0.29597,3383.9,3383.7,0.29599]
[1735580524936,3.2078,3384.1,3383.2,3.7886]
[1735580524937,3.2078,3384.1,3383.9,0.29596]
[1735580525147,3.50376,3384.1,3383.4,0.74004]
[1735580525346,3.50376,3384.1,3384.0,0.29596]
[1735580525548,0.29596,3384.1,3384.0,0.29596]
[1735580525748,0.5924,3384.4,3383.3,0.74006]
[1735580526151,0.29597,3383.9,3383.7,0.29598]
[1735580526751,0.5924,3384.4,3383.7,3.2078]
[1735580526942,3.2078,3385.0,3384.1,3.2078]
[1735580527451,3.2078,3385.0,3384.5,0.29591]
[1735580527752,0.2959,3384.8,3384.6,0.29591]
[1735580528248,0.2959,3384.8,3384.1,3.2078]
[1735580528249,0.29591,3384.6,3384.4,0.29592]
[1735580528446,0.2959,3384.7,3384.5,0.29591]
[1735580529248,3.2078,3385.0,3384.1,3.2078]
[1735580529654,3.2078,3385.0,3384.1,3.94767]
[1735580530154,0.2959,3384.7,3384.5,0.29591]
[1735580530351,0.2959,3384.7,3384.1,3.94767]
[1735580530352,0.29594,3384.2,3384.1,3.2078]
[1735580531142,0.73994,3383.9,3382.8,3.2078]
[1735580531351,0.29604,3383.2,3383.0,0.29605]
[1735580531551,3.94781,3383.6,3383.2,0.29603]
[1735580531552,0.29602,3383.4,3383.2,0.29603]
[1735580531745,3.2078,3383.6,3382.8,3.94797]
[1735580531948,0.29601,3383.5,3383.2,0.29603]
[1735580532241,0.29602,3383.4,3383.2,0.29603]
[1735580532644,3.2078,3383.6,3382.8,3.2078]
[1735580532855,3.2078,3383.1,3382.4,3.2078]
[1735580533052,0.73993,3383.9,3382.4,5.0]
[1735580533358,3.2078,3384.1,3383.1,3.2078]
[1735580533750,3.7812,3384.5,3383.5,3.2078]
[1735580533948,3.7812,3384.5,3383.6,0.74]
[1735580534151,3.7812,3384.5,3383.6,1.3923]
[1735580534445,3.2078,3384.5,3383.7,1.604]
[1735580534857,0.29593,3384.4,3384.1,0.29595]
[1735580535056,0.29593,3384.4,3383.7,1.604]
[1735580535057,0.29593,3384.4,3383.8,0.29598]
[1735580535356,0.29594,3384.3,3384.0,0.29595]
[1735580535551,0.29597,3384.0,3383.7,1.89998]
[1735580535748,0.29598,3383.9,3383.7,1.89999]
[1735580535944,0.29598,3383.8,3383.7,1.604]
[1735580536348,0.29598,3383.8,3383.5,3.2078]
[1735580536544,1.35077,3384.3,3382.9,5.55195]
[1735580536545,3.2078,3384.1,3382.9,5.55195]
[1735580536745,0.296,3383.6,3383.0,0.29605]
[1735580536946,3.2078,3384.1,3383.0,3.2078]
[1735580537148,0.29603,3383.3,3383.1,0.29603]
[1735580537351,3.2078,3383.6,3382.9,1.604]
[1735580537549,3.2078,3383.6,3383.2,0.29603]
[1735580537550,0.29602,3383.4,3383.2,0.29603]
[1735580537746,3.2078,3383.6,3383.5,0.29601]
[1735580537949,0.296,3383.6,3383.5,0.29601]
[1735580538155,0.29599,3383.7,3383.6,0.29599]
[1735580538348,3.2078,3384.2,3383.0,3.94793]
[1735580538555,0.29601,3383.5,3383.3,0.29602]
[1735580538756,0.29601,3383.5,3383.0,3.2078]
[1735580538757,0.73991,3384.0,3383.0,3.2078]
[1735580538954,0.29599,3383.7,3383.4,0.29601]
[1735580539155,0.29601,3383.5,3383.3,0.29602]
[1735580539366,3.2078,3383.8,3383.0,3.2078]
[1735580539554,0.29603,3383.3,3383.1,0.29604]
[1735580539753,3.2078,3383.8,3383.0,3.2078]
[1735580540152,0.29602,3383.4,3383.2,0.29602]
[1735580540354,3.94777,3383.8,3383.2,0.29602]
[1735580540659,0.29602,3383.3,3383.2,0.29602]
[1735580541253,3.2078,3383.8,3383.0,3.2078]
[1735580541448,0.29603,3383.3,3383.2,0.29602]
[1735580541652,3.2078,3383.8,3383.0,3.2078]
[1735580541859,3.2078,3383.8,3383.1,0.74011]
[1735580542159,0.29598,3383.9,3383.8,0.29597]
[1735580542356,0.00289683,3384.1,3384.0,0.29596]
[1735580542859,4.57805396,3384.8,3384.0,0.29596]
[1735580542860,4.57805396,3384.8,3384.7,0.2959]
[1735580543055,4.57805396,3384.8,3384.7,3.5037]
[1735580543254,4.57805396,3384.8,3384.7,8.5037]
[1735580543465,2.66025396,3384.8,3384.7,52.55174982]
[1735580543756,1.51143396,3384.8,3384.7,52.55174982]
[1735580543952,0.29579,3386.0,3385.8,0.2958]
[1735580544152,4.71923396,3386.2,3385.5,3.2078]
[1735580545260,1.304,3386.6,3385.5,3.50362]
[1735580545261,0.29582,3385.7,3385.5,3.50362]
[1735580545466,0.73941,3386.3,3385.5,3.2078]
[1735580545757,0.29582,3385.6,3385.5,3.2078]
[1735580546460,0.29582,3385.6,3385.5,2.2021]
[1735580547261,0.29582,3385.7,3385.5,2.2021]
[1735580547570,0.6672,3385.9,3385.5,2.2021]
[1735580547867,3.2078,3386.2,3385.5,2.2021]
[1735580548063,3.94723,3386.2,3385.1,3.2078]
[1735580548371,0.29582,3385.7,3385.1,3.2078]
[1735580548665,0.2958,3385.9,3385.6,0.29582]
[1735580548862,3.2078,3386.2,3385.5,3.2078]
[1735580549063,0.29579,3386.0,3385.5,3.2078]
[1735580549262,0.29582,3385.6,3385.5,3.2078]
[1735580549771,3.2078,3386.2,3385.5,3.2078]
[1735580549968,0.29578,3386.1,3385.8,0.2958]
[1735580550163,3.2078,3386.2,3385.5,3.2078]
[1735580550564,0.29581,3385.8,3385.5,3.50362]
[1735580550763,3.2078,3386.2,3385.6,0.29582]
[1735580551069,3.2078,3386.2,3385.5,3.2078]
[1735580551070,0.6059,3386.5,3385.9,3.2078]
[1735580551565,0.6674,3386.6,3385.9,3.2078]
[1735580551760,0.96314,3386.6,3386.2,0.29576]
[1735580551963,0.96314,3386.6,3386.3,0.29576]
[1735580552171,0.96314,3386.6,3385.9,8.2078]
[1735580552172,3.2078,3386.7,3386.2,0.29576]
[1735580552468,0.29573,3386.6,3386.3,0.29575]
[1735580552675,3.2078,3386.7,3385.9,3.2078]
[1735580552858,3.2078,3386.7,3386.5,0.29574]
[1735580553360,3.2078,3386.7,3386.0,40.8]
[1735580553361,3.45863794,3386.7,3386.0,40.8]
[1735580553567,3.45863794,3386.7,3386.3,3.2078]
[1735580554058,3.45863794,3386.7,3386.6,0.29573]
[1735580554661,6.66643794,3387.1,3386.6,0.29573]
[1735580554860,6.66643794,3387.1,3386.3,3.2078]
[1735580555065,0.2957,3387.0,3386.5,0.29574]
[1735580555371,0.29572,3386.8,3386.5,0.29574]
[1735580555564,6.66643794,3387.1,3386.3,3.2078]
[1735580555765,6.66643794,3387.1,3385.5,3.98761982]
[1735580555766,3.2078,3386.7,3385.8,3.2078]
[1735580556069,0.29577,3386.3,3385.8,3.2078]
[1735580556269,0.29577,3386.3,3386.0,0.29578]
[1735580556469,3.2078,3386.7,3385.8,3.2078]
[1735580556766,0.73934,3386.6,3385.8,3.2078]
[1735580556967,3.2078,3386.7,3385.8,3.2078]
[1735580557167,0.29577,3386.3,3385.8,3.2078]
[1735580557365,3.45863794,3386.5,3385.8,8.2078]
[1735580557672,3.45863794,3386.5,3386.2,3.2078]
[1735580557875,3.45863794,3386.5,3385.8,3.2078]
[1735580558172,0.2958,3385.9,3385.8,3.2078]
[1735580558671,3.2078,3386.3,3385.8,3.5036]
[1735580558672,0.29579,3386.0,3385.8,3.5036]
[1735580558870,3.2078,3386.3,3385.8,3.2078]
[1735580559070,3.2078,3386.3,3385.9,0.29579]
[1735580559271,0.29578,3386.1,3385.9,0.29579]
[1735580559473,3.2078,3386.3,3385.8,3.2078]
[1735580559672,0.29578,3386.1,3385.9,0.29579]
[1735580559873,0.29579,3386.0,3385.8,3.5036]
[1735580560075,0.2958,3385.9,3385.8,3.2078]
[1735580560477,0.29585,3385.3,3385.2,40.8]
[1735580560674,0.29585,3385.3,3385.1,0.29586]
[1735580560870,3.2078,3385.4,3384.7,3.2078]
[1735580561174,2.852734,3385.8,3383.9,3.2078]
[1735580561175,3.2078,3385.0,3383.9,3.2078]
[1735580561376,0.6106,3384.9,3383.9,3.2078]
[1735580561578,0.29592,3384.5,3384.4,0.29592]
[1735580561880,0.29591,3384.6,3384.5,0.29592]
[1735580562086,0.29593,3384.4,3384.3,0.29593]
[1735580562383,0.6106,3384.9,3384.7,0.29589]
[1735580562384,0.2959,3384.8,3384.7,0.29589]
[1735580562586,0.90649,3384.9,3384.8,0.29589]
[1735580562979,0.6106,3384.9,3384.3,3.2078]
[1735580563180,0.2959,3384.8,3384.7,0.2959]
[1735580563482,3.2078,3385.9,3384.7,3.2078]
[1735580563687,4.5324,3385.9,3384.7,3.2078]
[1735580563986,4.5324,3385.9,3385.1,0.29586]
[1735580563987,0.29586,3385.2,3385.1,0.29586]
[1735580564182,0.29586,3385.2,3384.7,3.2078]
[1735580564183,3.2078,3385.5,3384.7,3.2078]
[1735580564385,0.29589,3384.8,3384.7,3.2078]
[1735580564680,0.29593,3384.4,3384.3,0.29594]
[1735580564882,0.29594,3384.3,3384.2,40.8]
[1735580565082,0.29594,3384.3,3384.2,41.09594]
[1735580565678,0.29594,3384.3,3384.2,40.8]
[1735580565883,0.6394,3385.0,3384.2,40.8]
[1735580566384,3.2078,3384.7,3383.5,3.2078]
[1735580566587,0.296,3383.6,3383.5,3.2078]
[1735580566781,0.296,3383.6,3383.5,44.3038]
[1735580566981,0.296,3383.6,3383.5,44.0078]
[1735580567485,0.296,3383.6,3383.5,44.30381]
[1735580567783,0.6394,3384.1,3383.8,0.29597]
[1735580568285,0.6394,3384.1,3383.5,44.0078]
[1735580568286,0.6394,3384.1,3383.7,0.29598]
[1735580568483,0.29598,3383.8,3383.7,0.29598]
[1735580568886,0.6394,3384.1,3383.5,44.0078]
[1735580569181,0.296,3383.6,3383.5,44.0078]
[1735580569786,0.296,3383.6,3383.5,44.30381]
[1735580569986,1.332,3384.1,3383.5,44.0078]
[1735580570387,0.29598,3383.8,3383.7,0.29598]
[1735580570582,0.29598,3383.8,3383.5,44.0078]
[1735580570583,1.332,3384.1,3383.5,44.0078]
[1735580570790,0.296,3383.6,3383.5,44.0078]
[1735580570983,0.29596,3384.0,3383.5,44.3038]
[1735580571188,0.29598,3383.8,3383.5,44.0078]
[1735580571482,1.332,3384.1,3383.5,44.0078]
[1735580571483,0.29596,3384.1,3383.9,0.29597]
[1735580571791,3.45863794,3384.7,3383.5,44.0078]
[1735580571792,3.2078,3384.4,3383.5,44.0078]
[1735580571985,0.296,3383.6,3383.5,3.2078]
[1735580572191,0.29605,3383.0,3382.9,3.2078]
[1735580572484,0.29605,3383.0,3382.9,44.0078]
[1735580572689,0.29605,3383.0,3382.7,0.29607]
[1735580572878,1.3611,3383.5,3382.5,3.2078]
[1735580572879,0.29608,3382.6,3382.5,3.2078]
[1735580573683,1.3611,3383.5,3382.5,3.2078]
[1735580574088,1.3611,3383.5,3382.5,6.44562264]
[1735580574288,1.3611,3383.5,3382.9,3.2078]
[1735580574489,0.29597,3384.0,3383.8,0.29598]
[1735580574689,6.66643794,3384.2,3383.9,0.29597]
[1735580574897,3.2078,3384.2,3383.9,0.29597]
[1735580575081,3.2078,3384.2,3383.3,3.94785]
[1735580575288,3.2078,3384.2,3383.3,3.2078]
[1735580575289,0.29597,3383.9,3383.3,3.2078]
[1735580575488,0.29597,3383.9,3383.7,0.29598]
[1735580575896,0.29597,3383.9,3383.8,40.8]
[1735580576489,0.29597,3383.9,3383.8,41.09598]
[1735580576689,0.29596,3384.0,3383.8,40.8]
[1735580576888,0.29597,3383.9,3383.8,40.8]
[1735580577093,3.23782264,3384.1,3382.4,3.2078]
[1735580577295,0.29606,3382.9,3382.7,0.29607]
[1735580577492,3.2078,3383.3,3382.5,40.8]
[1735580577789,0.29608,3382.6,3382.5,40.8]
[1735580578188,2.0119,3383.2,3382.5,40.8]
[1735580578384,0.29611,3382.4,3382.2,0.29611]
[1735580578591,0.29611,3382.4,3381.9,3.2078]
[1735580578592,0.29607,3382.8,3382.0,0.74035]
[1735580578791,0.2961,3382.5,3382.3,0.29611]
[1735580578995,0.74013,3383.0,3382.3,0.29611]
[1735580579293,0.2961,3382.5,3382.4,0.2961]
[1735580579489,3.2078,3383.1,3381.9,3.2078]
[1735580579691,3.2078,3383.1,3382.5,0.29609]
[1735580579894,0.29608,3382.7,3382.5,0.29609]
[1735580580190,3.2078,3383.1,3382.3,3.2078]
[1735580580591,0.6874,3383.2,3382.8,3.2078]
[1735580580785,0.6874,3383.2,3382.4,3.2078]
[1735580581088,0.6874,3383.2,3383.1,0.29604]
[1735580581393,0.6874,3383.2,3382.4,3.2078]
[1735580581590,3.8587,3383.7,3382.8,3.2078]
[1735580581790,0.29601,3383.5,3382.8,3.2078]
[1735580581991,3.8587,3383.7,3382.8,3.2078]
[1735580582192,3.2078,3383.7,3383.6,0.296]
[1735580582685,0.6986,3383.9,3382.9,0.74015]
[1735580582893,0.6986,3383.9,3383.8,0.29598]
[1735580583195,0.73979,3384.6,3384.3,0.29594]
[1735580583196,3.2078,3384.6,3384.3,0.29594]
[1735580583396,3.45863794,3385.1,3384.2,3.2078]
[1735580583397,1.2807,3385.0,3384.2,3.2078]
[1735580583606,3.45863794,3385.1,3385.0,0.29587]
[1735580583798,3.45863794,3385.1,3385.0,3.50367]
[1735580584100,3.45863794,3385.1,3385.0,6.74149264]
[1735580584295,0.6427,3385.9,3385.0,11.44562264]
[1735580584499,3.45863794,3386.3,3385.7,3.2078]
[1735580584797,3.45863794,3386.3,3386.2,0.29577]
[1735580585097,3.45863794,3386.3,3385.7,3.2078]
[1735580585295,3.45863794,3386.3,3386.2,3.50357]
[1735580585498,3.45863794,3386.3,3386.0,0.29578]
[1735580585701,1.3336,3387.0,3385.8,4.7508]
[1735580585702,3.2078,3386.6,3385.8,3.2078]
[1735580585894,3.2078,3386.6,3385.9,0.29579]
[1735580585895,0.29577,3386.2,3385.9,0.29579]
[1735580586098,0.29575,3386.5,3385.8,3.2078]
[1735580586304,3.2078,3386.6,3386.0,0.29579]
[1735580586600,3.2078,3386.6,3385.8,3.2078]
[1735580586601,0.29575,3386.5,3386.1,0.29577]
[1735580586795,1.3336,3387.0,3385.8,3.2078]
[1735580587099,3.2078,3386.8,3385.8,3.2078]
[1735580587591,3.2078,3386.8,3386.4,0.29575]
[1735580587797,3.2078,3386.8,3386.0,0.29578]
[1735580587998,0.29574,3386.6,3386.2,0.29576]
[1735580588295,1.3336,3387.0,3386.4,3.2078]
[1735580588492,0.29571,3386.9,3386.5,0.29574]
[1735580588698,1.62931,3387.0,3386.5,0.29574]
[1735580588900,0.29571,3386.9,3386.5,0.29574]
[1735580589103,4.61561622,3388.3,3386.8,3.2078]
[1735580589301,1.3683,3388.0,3387.5,3.50345]
[1735580589501,4.61561622,3388.3,3388.0,0.29561]
[1735580590005,3.45863794,3388.3,3387.9,3.2078]
[1735580590397,3.45863794,3388.3,3388.2,0.29559]
[1735580590595,3.45863794,3388.3,3387.9,3.2078]
[1735580590997,3.45863794,3388.3,3388.0,0.29561]
[1735580591298,3.45863794,3388.3,3387.9,3.2078]
[1735580591299,3.45863794,3388.3,3388.2,0.29559]
[1735580591499,5.2107,3388.9,3387.9,3.2078]
[1735580591897,5.2107,3388.9,3388.2,0.29559]
[1735580592201,5.2107,3388.9,3387.9,3.2078]
[1735580592593,5.2107,3388.9,3388.4,0.29557]
[1735580592791,5.2107,3388.9,3388.0,40.8]
[1735580592993,3.2078,3388.9,3388.3,3.2078]
[1735580593196,3.2078,3389.5,3388.3,4.7498]
[1735580593502,2.0501,3389.7,3388.7,3.2078]
[1735580593695,3.2078,3389.6,3389.1,0.29551]
[1735580594004,3.2078,3389.6,3388.7,3.2078]
[1735580594198,0.29553,3389.0,3388.1,3.2078]
[1735580594397,3.2078,3389.2,3388.1,3.2078]
[1735580594702,0.29552,3389.1,3388.1,3.5034]
[1735580595093,5.29552,3389.1,3388.1,3.5034]
[1735580595297,0.29553,3389.0,3388.1,3.5034]
[1735580595497,3.2078,3389.2,3388.1,3.5034]
[1735580595498,3.50331,3389.2,3388.3,0.29558]
[1735580595702,8.2078,3389.2,3388.2,0.29559]
[1735580595903,0.29552,3389.1,3388.2,0.29559]
[1735580596109,3.2078,3389.2,3388.5,3.2078]
[1735580596609,3.2078,3389.6,3388.5,3.2078]
[1735580596906,3.2078,3389.6,3388.9,0.29553]
[1735580597104,3.2078,3389.2,3388.8,0.29554]
[1735580597304,3.2078,3389.2,3388.5,3.2078]
[1735580597708,3.2078,3389.2,3388.6,0.29555]
[1735580598204,3.2078,3389.2,3388.5,3.50337]
[1735580598607,0.29553,3389.0,3388.5,3.2078]
[1735580598807,3.2078,3389.2,3388.0,3.2078]
[1735580598808,0.29554,3388.9,3388.0,3.2078]
[1735580599001,0.29555,3388.7,3388.0,3.2078]
[1735580599203,0.29555,3388.7,3387.0,3.2078]